Cogmind - Beta 11.1 @@@ ROGUE MODE // 2022.05.09 @ 01:01:52 Player: Zeldest Result: Destroyed by Y-45 Defender with Beam Rifle Performance ------------- Evolutions (2) 1000 Regions Visited (4) 800 Robots Destroyed (60) 300 Value Destroyed (1280) 1280 Prototype IDs (2) 40 Alien Tech Used (0) 0 Bonus (133) 133 TOTAL SCORE: 3553 Bonus ------- High Alert Combat Kills 133 Cogmind --------- Core Integrity 0/550 Matter 230/300 Energy 99/100 System Corruption 0% Temperature Cool (9) Movement Core (750) Ox14 Location -8/Materials Parts ------- > --- POWER (1) -------- (None) > --- PROPULSION (2) --- (None) > --- UTILITY (5) ------ Small Storage Unit High-capacity Storage Unit Improved Targeting Computer > --- WEAPON (3) ------- (None) > --- INVENTORY (20) --- Sensor Array Improved Targeting Computer Improved Datajack Peak State ------------ > --- POWER ------------ Ion Engine > --- PROPULSION ------- Light Treads Light Treads > --- UTILITY ---------- High-capacity Storage Unit Sensor Array Improved Targeting Computer Matter Filter Tractor Beam > --- WEAPON ----------- Mini Grenade Launcher Mini Grenade Launcher Mini Grenade Launcher > --- INVENTORY -------- Ion Engine Cooled Ion Engine Cooled Ion Engine Light Treads Light Treads Small Storage Unit Sensor Array Improved Targeting Computer Heavy Ion Cannon Mini Grenade Launcher Mining Laser [Rating: 20] Favorites ----------- Power Ion Engine Engine Ion Engine Propulsion Light Treads Treads Light Treads Utility Sensor Array Device Sensor Array Storage High-capacity Storage Unit Processor Improved Targeting Computer Weapon Mini Grenade Launcher Energy Cannon Heavy Ion Cannon Ballistic Gun Assault Rifle Launcher Mini Grenade Launcher Special Weapon Mining Laser Build | -11 -10 -9 -9 -8 ------- Run | Scr Mat Mat Min Mat Slots Evolved 4 | . . 2 . 2 Power . | . . . . . Propulsion . | . . . . . Utility 3 | . . 1 . 2 Weapon 1 | . . 1 . . Parts Attached 34 | 6 4 5 5 14 Power 6 | 1 . 2 1 2 Engine 6 | 1 . 2 1 2 Core . | . . . . . Reactor . | . . . . . Propulsion 6 | 2 . . 1 3 Treads 6 | 2 . . 1 3 Leg . | . . . . . Wheel . | . . . . . Hover . | . . . . . Flight . | . . . . . Utility 9 | 1 1 2 . 5 Device 5 | . 1 1 . 3 Storage 3 | 1 . 1 . 1 Processor 1 | . . . . 1 Hackware . | . . . . . Protection . | . . . . . Artifact . | . . . . . Weapon 13 | 2 3 1 3 4 Energy Gun . | . . . . . Energy Cannon 2 | . 1 . . 1 Ballistic Gun 2 | 2 . . . . Ballistic Cannon . | . . . . . Launcher 6 | . 2 1 2 1 Special Weapon 3 | . . . 1 2 Impact Weapon . | . . . . . Slashing Weapon . | . . . . . Piercing Weapon . | . . . . . Special Melee Weapon . | . . . . . Unidentified Prototypes 2 | . . 1 . 1 Parts Lost 20 | . . . 2 18 Power 3 | . . . 1 2 Propulsion 5 | . . . . 5 Utility 4 | . . . . 4 Weapon 8 | . . . 1 7 Highest Loss Streak 7 | . . . 1 7 To Critical Strikes . | . . . . . Average Slot Usage (%) 89 | . 97 100 99 67 Engine 9 | . 14 11 11 6 Treads 17 | . 28 22 22 7 Device 18 | . 12 22 22 14 Storage 11 | . 14 11 11 12 Processor 2 | . . . . 9 Energy Cannon 3 | . 11 . . 6 Launcher 22 | . 5 33 32 8 Naked Turns . | . . . . . Heaviest Build 65 | 13 17 52 52 65 Greatest Support 40 | 40 40 40 40 40 Greatest Overweight (x) 20 | . . 1 1 20 Average Overweight (x) 1 | . . . 1 5 Largest Inventory Capacity 20 | 8 8 20 20 20 Average Capacity 17 | 7 8 18 20 20 Most Carried 14 | 5 8 12 14 12 Average Carried 8 | 1 5 7 13 5 Final Capacity 20 | 8 8 20 20 20 Final Carried 13 | 2 7 12 13 3 Class Distribution -------------------- 55% | Skirmisher 36% | Mutant 8% | Bomber Dominant Class ---------------- Mutant | -10/Materials Skirmisher | -9/Materials Skirmisher | -9/Mines Mutant | -8/Materials Resources | -11 -10 -9 -9 -8 ----------- Run | Scr Mat Mat Min Mat Matter Collected 1188 | 276 23 320 315 254 Remotely 676 | . . 320 305 51 Salvage Created 1301 | 64 45 329 217 646 Parts 92 | 2 3 40 7 40 Haulers Intercepted 3 | . . 2 . 1 Recyclers Shooed . | . . . . . Parts Field Recycled . | . . . . . Retrieved Matter . | . . . . . Parts Self-Destructed . | . . . . . Prevented . | . . . . . Kills | -11 -10 -9 -9 -8 ------- Run | Scr Mat Mat Min Mat Combat Hostiles Destroyed 39 | . 1 10 8 20 Cannons 2 | . 1 . . 1 AOE 37 | . . 10 8 19 Classes Destroyed 12 | 1 1 6 2 2 Worker 3 | . . 3 . . Builder 7 | . . 3 . 4 Tunneler 1 | . . . 1 . Hauler 3 | . . 2 . 1 Recycler 8 | 1 . 2 2 3 Watcher 5 | . . 2 . 3 Swarmer 14 | . . 7 . 7 Grunt 13 | . 1 1 2 9 Duelist 1 | . . . . 1 Sentry 4 | . . 2 . 2 Hunter 1 | . . . . 1 Assembled 6 | . . . 6 . Best Kill Streak 25 | 1 1 8 3 25 Combat Bots Only 17 | . 1 4 2 17 Max Kills in Single Turn 9 | 1 1 6 3 9 Gunslinging . | . . . . . Exploded 6 | . . 4 2 6 Melee . | . . . . . Uniques/NPCs Destroyed . | . . . . . Combat | -11 -10 -9 -9 -8 -------- Run | Scr Mat Mat Min Mat Damage Taken 2418 | . 37 197 379 1805 Core 661 | . 15 40 53 553 Absorbed by Shields . | . . . . . Core Remaining (%) 90 | 100 94 . 76 . Volleys Fired 49 | 4 2 8 8 27 Largest 3 | 2 2 3 3 3 Hottest 125 | 40 80 90 90 125 Shots Fired 111 | 8 4 25 23 51 Gun 10 | 8 2 . . . Cannon 14 | . 2 . . 12 Launcher 80 | . . 25 23 32 Special 7 | . . . . 7 Kinetic 10 | 8 2 . . . Thermal 21 | . 2 . . 19 Explosive 80 | . . 25 23 32 Electromagnetic . | . . . . . Robot Hit Streak 8 | 7 2 8 2 6 Robot Miss Streak 4 | 1 1 4 4 1 Penetration Max . | . . . . . Secondary Targets . | . . . . . Shots Hit Robots 45 | 7 2 9 6 21 Core Hits 118 | 2 2 34 19 61 Critical Kills . | . . . . . Critical Parts Destroyed . | . . . . . Critical Strikes . | . . . . . Melee Attacks . | . . . . . Impact . | . . . . . Slashing . | . . . . . Piercing . | . . . . . Sneak Attacks . | . . . . . Combat Hostiles . | . . . . . Follow-up Attacks . | . . . . . Damage Inflicted 4774 | 84 31 1108 792 2759 Guns 96 | 84 12 . . . Cannons 287 | . 18 . . 269 Explosions 4358 | . . 1108 791 2459 Melee . | . . . . . Ramming 6 | . 1 . 1 4 Kinetic 96 | 84 12 . . . Thermal 314 | . 18 . . 296 Explosive 4358 | . . 1108 791 2459 Electromagnetic . | . . . . . Impact . | . . . . . Slashing . | . . . . . Piercing . | . . . . . Highest Corruption 4 | . . 4 4 . Average Corruption 4 | . . 4 4 . Corruption Purged . | . . . . . Corruption Blocked . | . . . . . Effects 21 | . . 6 15 . Message Errors 5 | . . 2 3 . Matter Fused 5 | . . . 5 . Heat Flow Errors 2 | . . 1 1 . Energy Discharges 1 | . . . 1 . Data Loss (minor) 3 | . . 1 2 . Data Loss (major) 2 | . . 1 1 . Misfires 1 | . . 1 . . Alerts 1 | . . . 1 . Weapon Failures 1 | . . . 1 . Overload Shots . | . . . . . Overflow Damage 52 | . . . 24 28 Projectiles . | . . . . . Explosions 52 | . . . 24 28 Melee . | . . . . . Knockbacks . | . . . . . Impact . | . . . . . Kinetic . | . . . . . Secondary . | . . . . . Self-Inflicted Damage 396 | . . 63 153 180 Shots 15 | . . 4 6 5 Rammed 3 | . 1 . 1 1 Targets Rammed 3 | . 1 . 1 1 Kicked . | . . . . . Crushed . | . . . . . Highest Temperature 200 | . 36 105 200 105 Average Temperature 33 | . 20 25 40 35 Received Heat Transfer 672 | . 6 36 . 630 Siege Activations . | . . . . . Robots Corrupted . | . . . . . Combat Hostiles . | . . . . . Parts Fried . | . . . . . Impact Corruptions 1 | . . . 1 . Robots Melted . | . . . . . Combat Hostiles . | . . . . . Parts Melted . | . . . . . Heat Transferred 482 | . 37 . . 445 Parts Sabotaged . | . . . . . Parts Stolen . | . . . . . Parts Stripped . | . . . . . Power Chain Reactions . | . . . . . Missiles Intercepted . | . . . . . Alert | -11 -10 -9 -9 -8 ------- Run | Scr Mat Mat Min Mat Peak Influence 793 | 5 48 695 439 793 Initial 270 | . 3 20 270 147 Average 368 | 2 34 389 328 600 Maximum Alert Level 3 | . . 2 2 3 Low Security (%) 21 | 100 100 8 . 11 Level 1 41 | . . 41 89 2 Level 2 25 | . . 49 10 46 Level 3 11 | . . . . 38 Level 4 . | . . . . . Level 5 . | . . . . . High Security . | . . . . . Max Security . | . . . . . Squads Dispatched 5 | . 1 1 1 2 Investigation 2 | . . 1 1 . Extermination . | . . . . . Reinforcement 3 | . 1 . . 2 Assault . | . . . . . Garrison . | . . . . . Intercept . | . . . . . Searches Triggered . | . . . . . Construction Impeded 1 | . . . . 1 Haulers Reinforced . | . . . . . Active Scanning Responses . | . . . . . Cargo Convoy Interrupts . | . . . . . Stealth | -11 -10 -9 -9 -8 --------- Run | Scr Mat Mat Min Mat Distress Signals 2 | . . 1 . 1 Communications Jammed . | . . . . . Distress Signals . | . . . . . Times Spotted 56 | . 3 15 11 27 Peak Tracking Total 8 | . 1 5 2 8 Tactical Retreats 1 | . . . 1 . Traps | -11 -10 -9 -9 -8 ------- Run | Scr Mat Mat Min Mat Traps Triggered 1 | . . 1 . . Indirectly . | . . . . . Trap Hack Attempts . | . . . . . Triggered . | . . . . . Disarmed . | . . . . . Reprogrammed . | . . . . . Reused . | . . . . . Traps Extracted . | . . . . . Installed . | . . . . . Triggered . | . . . . . Machines | -11 -10 -9 -9 -8 ---------- Run | Scr Mat Mat Min Mat Machines Disabled 8 | . . 1 2 5 Max in Single Turn 2 | . . 1 1 2 Machines Sabotaged . | . . . . . Garrisons Compromised . | . . . . . Overloaded Fab Kills . | . . . . . Hacking | -11 -10 -9 -9 -8 --------- Run | Scr Mat Mat Min Mat Machines Accessed 2 | . . 1 1 . Terminals 1 | . . 1 . . Fabricators . | . . . . . Repair Stations . | . . . . . Recycling Units . | . . . . . Scanalyzers . | . . . . . Garrison Access . | . . . . . Total Hacks 2 | . . 1 1 . Successful 2 | . . 1 1 . Failed . | . . . . . Catastrophic . | . . . . . Database Lockouts . | . . . . . Manual . | . . . . . Terminals 1 | . . 1 . . Fabricators . | . . . . . Repair Stations . | . . . . . Recycling Units . | . . . . . Scanalyzers . | . . . . . Garrison Access . | . . . . . Terminal Hacks 2 | . . 1 1 . Open Door 1 | . . . 1 . Branch Access Points 1 | . . 1 . . Fabricator Hacks . | . . . . . Repair Station Hacks . | . . . . . Recycling Unit Hacks . | . . . . . Scanalyzer . | . . . . . Garrison Access Hacks . | . . . . . Unauthorized Hacks . | . . . . . Terminals . | . . . . . Fabricators . | . . . . . Repair Stations . | . . . . . Recycling Units . | . . . . . Scanalyzers . | . . . . . Garrison Access . | . . . . . Data Cores Recovered . | . . . . . Used . | . . . . . Hacking Detections . | . . . . . Full Trace Events . | . . . . . Feedback Events . | . . . . . Feedback Blocked . | . . . . . Robot Schematics Acquired . | . . . . . Robots Built . | . . . . . Authchips . | . . . . . Time . | . . . . . Total Robot Build Rating . | . . . . . Part Schematics Acquired . | . . . . . Parts Built . | . . . . . Authchips . | . . . . . Time . | . . . . . Total Part Build Rating . | . . . . . Parts Repaired . | . . . . . Time . | . . . . . Parts Recycled . | . . . . . Recycled Matter . | . . . . . Retrieved Matter . | . . . . . Retrieved Components . | . . . . . Parts Scanalyzed . | . . . . . Part Schematics Acquired . | . . . . . Parts Damaged . | . . . . . Bothacking | -11 -10 -9 -9 -8 ------------ Run | Scr Mat Mat Min Mat Used RIF Installer . | . . . . . Robots Hacked . | . . . . . Non-combat . | . . . . . Combat . | . . . . . Robot Hacks Applied . | . . . . . Relay Couplers Released . | . . . . . Fabnet Peak Effective % . | . . . . . Robots Rewired . | . . . . . Allies Hacked . | . . . . . Hacks Repelled . | . . . . . Allies | -11 -10 -9 -9 -8 -------- Run | Scr Mat Mat Min Mat Total Allies . | . . . . . Largest Group . | . . . . . Highest-Rated Group . | . . . . . Highest-Rated Ally . | . . . . . Total Orders . | . . . . . Ally Attacks . | . . . . . Total Damage . | . . . . . Kills . | . . . . . Allies Corrupted . | . . . . . Allies Melted . | . . . . . Intel | -11 -10 -9 -9 -8 ------- Run | Scr Mat Mat Min Mat Robot Analysis Total . | . . . . . Derelict Logs Recovered . | . . . . . Drone Launches . | . . . . . Drone Recoveries . | . . . . . Exploration | -11 -10 -9 -9 -8 ------------- Run | Scr Mat Mat Min Mat Turns Passed 1961 | 152 172 315 740 582 Spaces Moved 679 | 89 78 122 286 104 Core 34 | 13 . . . 21 Treads 645 | 76 78 122 286 83 Legs . | . . . . . Wheels . | . . . . . Hover . | . . . . . Flight . | . . . . . Fastest Speed 50 | 50 160 160 240 240 Average Speed 246 | 143 160 224 240 439 Slowest Speed 1050 | 160 160 240 240 1050 Overloaded Moves . | . . . . . Propulsion Burnouts . | . . . . . Robots Hopped . | . . . . . Cave-ins Triggered . | . . . . . Exploration Rate (%) 30 | 8 17 27 86 14 Regions Visited 4 Branch Regions 1 Pre-discovered Areas . | . . . . . Known Exits Taken 1 | . . 1 . . Unknown Exits Taken 3 | 1 1 . 1 . Scrap Searched 2 | . . . 2 . Spaces Dug 4 | . . . . 4 Terrain Destroyed 358 | . . 112 122 124 Melee . | . . . . . Projectile 6 | . . . . 6 AOE 352 | . . 112 122 118 Terrain Rammed . | . . . . . Walls Destroyed . | . . . . . Machines Disabled . | . . . . . Actions | -11 -10 -9 -9 -8 --------- Run | Scr Mat Mat Min Mat Total 877 | 106 124 147 321 179 Wait 65 | . 24 . 18 23 Move 675 | 88 77 121 285 104 Hop . | . . . . . Pick Up 35 | 8 10 9 3 5 Fast Attach . | . . . . . Attach 31 | 6 4 4 3 14 Detach 7 | . 2 2 1 2 Swap 3 | . . 1 2 . Drop 9 | . 4 2 . 3 Fire 49 | 4 2 8 8 27 Melee . | . . . . . Ram . | . . . . . Kick . | . . . . . Crush 3 | . 1 . 1 1 Escape Stasis . | . . . . . Rewire . | . . . . . Trap . | . . . . . Miscellaneous . | . . . . . Route ------- -11/Scrapyard -10/Materials -9/Materials (discovered 2 exits: *Min x2) -9/Mines -8/Materials (discovered 1 exit: [*Sto]) History --------- Turn | Location | Event 4 | -11/Scrapyard | Discovered new exit (range 15) 153 | -11/Scrapyard | Entered Materials 285 | -10/Materials | Discovered new exit (range 16) 325 | -10/Materials | Entered another Materials area 325 | -9/Materials | Evolved 2 slots: Utility x1, Weapon x1 406 | -9/Materials | Identified exit to Mines 598 | -9/Materials | Build established: Skirmisher 640 | -9/Materials | Entered Mines 646 | -9/Mines | Met a Derelict shopkeep closing up shop 720 | -9/Mines | Assembled infested the area 725 | -9/Mines | Assisted by a Guerilla fighting off Assembled 1332 | -9/Mines | Discovered new exit (range 12) 1380 | -9/Mines | Entered Materials 1380 | -8/Materials | Evolved 2 slots: Utility x2 1536 | -8/Materials | Lost 7 parts (3n2u2w) 1540 | -8/Materials | Destroyed 17 combat bots 1617 | -8/Materials | Lost 3 parts (1p1n1w) 1873 | -8/Materials | Build established: Mutant 1895 | -8/Materials | Discovered new exit (range 11) 1933 | -8/Materials | Core integrity fell below 50% 1951 | -8/Materials | Core integrity fell below 20% 1962 | -8/Materials | Destroyed by Y-45 Defender with Beam Rifle Last Messages --------------- 01732_ Acquired Imp. Sensor Array. 01734_ Acquired 52 matter. 01826_ K-01 Serf collects debris. 01827_ Slammed into K-01 Serf. 01895_ EXIT=FOUND 01903_ Acquired Welding Torch. 01908_ Sensor Array destroyed. 01909_ Scanalyzer disabled. 01912_ Welding Torch destroyed. 01914_ Critical hit (Burn: +37). 01917_ Mining Laser destroyed. 01918_ Critical hit (Burn: +37). 01924_ Lgt. Treads destroyed. 01929_ Critical hit (Burn: +37). 01929_ Broken Hvy. Ion Cannon destroyed. 01931_ The unstable cave ceiling collapses. 01941_ Cld. Ion Engine destroyed. 01945_ Acquired Imp. Datajack. 01950_ Imp. Sensor Array destroyed. 01959_ Critical hit (Burn: +37). Map ----- +----------------------------------------------------+ | ???????????????????????????????? | | ???????????????????????????????? | | ???????????????????????????????? | | ???????????????????????????????? | | ???????????????????????????????? | | ???????????????????????????????? | | ???????????????????????????????? | | ???????????????????????????????? | | ???????????????????????????????? | | ???????????????????????????????? | | ???????????????????????????????? | | ???????????????????????????????? | | ???????????????????????????????? | | ???????????????????????????##### | | ??????????????????????????==! | | ?????????????????????????#=!! | | ??????????????????????????=!! " | | ????????????#??????????????? | | ??????????? ####????? ###+### | | ??????????? ?????? % | | ??????????